fUSD/lending_fUSD_20250426
["ID","MTS","AMOUNT","RATE_DAILY","PERIOD"]
[359054097,1745677842069,-400.0,0.00019975,2]
[359054098,1745677842080,-200.0,0.00019975,2]
[359054099,1745677842092,-400.0,0.00019975,2]
[359054100,1745677842105,-200.0,0.00019975,2]
[359054101,1745677842120,-400.0,0.00019975,2]
[359054102,1745677842133,-553.44,0.00019975,2]
[359054103,1745677842147,-400.0,0.00019975,2]
[359054104,1745677842158,-469.08,0.00019975,2]
[359054105,1745677842170,-400.0,0.00019975,2]
[359054106,1745677842182,-400.0,0.00019975,2]
[359054107,1745677842195,-400.0,0.00019975,2]
[359054108,1745677842210,-400.0,0.00019975,2]
[359054109,1745677842223,-1059.43,0.00019975,2]
[359054110,1745677842237,-400.0,0.00019975,2]
[359054111,1745677842252,-203.80382462,0.00019975,2]
[359054112,1745677842264,-474.4,0.00019975,2]
[359054113,1745677842277,-400.0,0.00019975,2]
[359054114,1745677842291,-400.0,0.00019975,2]
[359054115,1745677842303,-400.0,0.00019975,2]
[359054116,1745677842316,-400.0,0.00019975,2]
[359054117,1745677842328,-575.21,0.00019975,2]
[359054118,1745677842348,-440.88,0.00019975,2]
[359054119,1745677842361,-3877.13,0.00019975,2]
[359054120,1745677842373,-400.0,0.00019975,2]
[359054121,1745677842387,-400.0,0.00019975,2]
[359054122,1745677842400,-400.0,0.00019975,2]
[359054123,1745677842411,-400.0,0.00019975,2]
[359054124,1745677842424,-651.17,0.00019975,2]
[359054125,1745677842436,-500.74,0.00019975,2]
[359054126,1745677842448,-620.96,0.00019975,2]
[359054127,1745677842461,-623.89,0.00019975,2]
[359054128,1745677842473,-400.0,0.00019975,2]
[359054129,1745677842487,-400.0,0.00019975,2]
[359054130,1745677842500,-400.0,0.00019975,2]
[359054131,1745677842513,-400.0,0.00019975,2]
[359054132,1745677842526,-400.0,0.00019975,2]
[359054133,1745677842539,-408.48,0.00019975,2]
[359054134,1745677842551,-426.7,0.00019975,2]
[359054135,1745677842564,-400.0,0.00019975,2]
[359054136,1745677842576,-594.55,0.00019975,2]
[359054137,1745677842589,-704.72,0.00019975,2]
[359054138,1745677842601,-400.0,0.00019975,2]
[359054139,1745677842613,-400.0,0.00019975,2]
[359054140,1745677842626,-400.0,0.00019975,2]
[359054141,1745677842638,-471.36,0.00019975,2]
[359054142,1745677842651,-400.0,0.00019975,2]
[359054143,1745677842663,-400.0,0.00019975,2]
[359054144,1745677842676,-400.0,0.00019975,2]
[359054145,1745677842688,-400.0,0.00019975,2]
[359054146,1745677842701,-400.0,0.00019975,2]
[359054147,1745677842714,-221050.94,0.00019975,2]
[359054148,1745677842727,-543.44,0.00019975,2]
[359054149,1745677842740,-397.05282547,0.00019975,2]
[359054150,1745677842754,-740.21,0.00019975,2]
[359054151,1745677842767,-400.0,0.00019975,2]
[359054152,1745677842779,-737.03,0.00019975,2]
[359054153,1745677842791,-400.0,0.00019975,2]
[359054154,1745677842803,-587.55,0.00019975,2]
[359054155,1745677842815,-400.0,0.00019975,2]
[359054156,1745677842828,-439.19,0.00019975,2]
[359054157,1745677842842,-418.6,0.00019975,2]
[359054158,1745677842854,-500.0,0.00019975,2]
[359054159,1745677842867,-400.0,0.00019975,2]
[359054160,1745677842879,-4905.18,0.00019975,2]
[359054161,1745677842891,-521.93,0.00019975,2]
[359054162,1745677842903,-400.0,0.00019975,2]
[359054163,1745677842916,-400.0,0.00019975,2]
[359054164,1745677842929,-400.0,0.00019975,2]
[359054165,1745677842941,-400.0,0.00019975,2]
[359054166,1745677842955,-719.01,0.00019975,2]
[359054167,1745677842968,-400.0,0.00019975,2]
[359054168,1745677842980,-400.0,0.00019975,2]
[359054169,1745677842992,-862.17,0.00019975,2]
[359054170,1745677843005,-400.0,0.00019975,2]
[359054171,1745677843016,-400.0,0.00019975,2]
[359054172,1745677843029,-435.6,0.00019975,2]
[359054173,1745677843042,-400.0,0.00019975,2]
[359054174,1745677843055,-770.67,0.00019975,2]
[359054175,1745677843067,-458.71,0.00019975,2]
[359054176,1745677843080,-374.90937011,0.00019975,2]
[359054177,1745677843092,-701.28,0.00019975,2]
[359054178,1745677843105,-500.00000003,0.00019975,2]
[359054179,1745677843117,-863.97,0.00019975,2]
[359054180,1745677843129,-400.0,0.00019975,2]
[359054181,1745677843141,-400.0,0.00019975,2]
[359054182,1745677843153,-400.0,0.00019975,2]
[359054183,1745677843165,-512.06,0.00019975,2]
[359054184,1745677843177,-484.41,0.00019975,2]
[359054186,1745677843189,-400.0,0.00019975,2]
[359054187,1745677843201,-400.0,0.00019975,2]
[359054188,1745677843216,-535.13,0.00019975,2]
[359054189,1745677843228,-400.0,0.00019975,2]
[359054190,1745677843241,-400.0,0.00019975,2]
[359054191,1745677843254,-400.0,0.00019975,2]
[359054192,1745677843267,-513.64,0.00019975,2]
[359054193,1745677843280,-400.0,0.00019975,2]
[359054194,1745677843292,-708.02,0.00019975,2]
[359054195,1745677843304,-519.49,0.00019975,2]
[359054196,1745677843316,-400.0,0.00019975,2]
[359054198,1745677843328,-400.0,0.00019975,2]
[359054201,1745677843340,-400.0,0.00019975,2]
[359054202,1745677843352,-547.22,0.00019975,2]
[359054203,1745677843364,-1095.54,0.00019975,2]
[359054204,1745677843376,-746.09,0.00019975,2]
[359054205,1745677843388,-400.0,0.00019975,2]
[359054206,1745677843400,-156.30465013,0.00019975,2]
[359054207,1745677843413,-400.0,0.00019975,2]
[359054208,1745677843425,-206.05235165,0.00019975,2]
[359054209,1745677843437,-400.0,0.00019975,2]
[359054210,1745677843450,-769.8,0.00019975,2]
[359054211,1745677843463,-400.0,0.00019975,2]
[359054212,1745677843476,-708.77,0.00019975,2]
[359054213,1745677843488,-680.24,0.00019975,2]
[359054214,1745677843500,-625.22,0.00019975,2]
[359054215,1745677843513,-400.0,0.00019975,2]
[359054216,1745677843525,-488.51,0.00019975,2]
[359054217,1745677843537,-500.0,0.00019975,2]
[359054218,1745677843549,-500.0,0.00019975,2]
[359054219,1745677843561,-601.52,0.00019975,2]
[359054220,1745677843574,-1609.08,0.00019975,2]
[359054221,1745677843586,-400.0,0.00019975,2]
[359054222,1745677843599,-500.0,0.00019975,2]
[359054223,1745677843611,-400.0,0.00019975,2]
[359054224,1745677843624,-400.0,0.00019975,2]
[359054225,1745677843636,-500.0,0.00019975,2]
[359054226,1745677843648,-511.59,0.00019975,2]
[359054227,1745677843661,-400.0,0.00019975,2]
[359054228,1745677843673,-1047.08,0.00019975,2]
[359054229,1745677843685,-400.0,0.00019975,2]
[359054230,1745677843697,-400.0,0.00019975,2]
[359054231,1745677843709,-1046.16,0.00019975,2]
[359054232,1745677843721,-400.0,0.00019975,2]
[359054233,1745677843734,-614.72,0.00019975,2]
[359054234,1745677843746,-400.0,0.00019975,2]
[359054235,1745677843758,-400.0,0.00019975,2]
[359054236,1745677843771,-745.28,0.00019975,2]
[359054237,1745677843782,-500.0,0.00019975,2]
[359054238,1745677843795,-400.0,0.00019975,2]
[359054239,1745677843807,-422.19,0.00019975,2]
[359054241,1745677843820,-926.57,0.00019975,2]
[359054242,1745677843833,-400.0,0.00019975,2]
[359054243,1745677843845,-1134.1,0.00019975,2]
[359054244,1745677843857,-708.78,0.00019975,2]
[359054245,1745677843869,-784.09,0.00019975,2]
[359054246,1745677843881,-503.48,0.00019975,2]
[359054247,1745677843893,-400.0,0.00019975,2]
[359054248,1745677843906,-400.0,0.00019975,2]
[359054249,1745677843918,-467.52,0.00019975,2]
[359054250,1745677843930,-400.0,0.00019975,2]
[359054251,1745677843944,-549.26,0.00019975,2]
[359054252,1745677843957,-1015.9,0.00019975,2]
[359054253,1745677843969,-3347.66,0.00019975,2]
[359054254,1745677843981,-400.0,0.00019975,2]
[359054255,1745677843992,-400.0,0.00019975,2]
[359054256,1745677844004,-400.0,0.00019975,2]
[359054257,1745677844015,-704.92,0.00019975,2]
[359054258,1745677844027,-500.0,0.00019975,2]
[359054259,1745677844038,-400.0,0.00019975,2]
[359054260,1745677844050,-400.0,0.00019975,2]
[359054261,1745677844063,-400.0,0.00019975,2]
[359054262,1745677844075,-1886.68,0.00019975,2]
[359054263,1745677844088,-400.0,0.00019975,2]
[359054264,1745677844100,-400.0,0.00019975,2]
[359054265,1745677844112,-1160.34,0.00019975,2]
[359054266,1745677844125,-591.62,0.00019975,2]
[359054267,1745677844137,-400.0,0.00019975,2]
[359054268,1745677844149,-400.0,0.00019975,2]
[359054269,1745677844161,-591.56,0.00019975,2]
[359054270,1745677844172,-527.26,0.00019975,2]
[359054271,1745677844185,-400.0,0.00019975,2]
[359054272,1745677844197,-400.0,0.00019975,2]
[359054273,1745677844212,-400.0,0.00019975,2]
[359054274,1745677844224,-400.0,0.00019975,2]
[359054275,1745677844236,-406.88,0.00019975,2]
[359054276,1745677844250,-150.0,0.00019975,2]
[359054277,1745677844262,-200.0,0.00019975,2]
[359054278,1745677844274,-400.0,0.00019975,2]
[359054279,1745677844286,-442.96,0.00019975,2]
[359054280,1745677844299,-1140.69,0.00019975,2]
[359054281,1745677844310,-500.0,0.00019975,2]
[359054282,1745677844322,-165.37377652,0.00019975,2]
[359054283,1745677844333,-400.0,0.00019975,2]
[359054284,1745677844345,-826.38,0.00019975,2]
[359054285,1745677844356,-500.0,0.00019975,2]
[359054286,1745677844368,-670.53,0.00019975,2]
[359054287,1745677844380,-400.0,0.00019975,2]
[359054288,1745677844392,-815.63,0.00019975,2]
[359054289,1745677844403,-750.47,0.00019975,2]
[359054290,1745677844415,-400.0,0.00019975,2]
[359054291,1745677844428,-605.87,0.00019975,2]
[359054292,1745677844440,-400.0,0.00019975,2]
[359054293,1745677844451,-453.83855571,0.00019975,2]
[359054294,1745677844464,-400.0,0.00019975,2]
[359054295,1745677844476,-99063.35,0.00019975,2]
[359054296,1745677844489,-400.0,0.00019975,2]
[359054297,1745677844502,-743.42,0.00019975,2]
[359054298,1745677844514,-537.37300832,0.00019976,2]
[359054299,1745677844527,-503.96352801,0.00019976,2]
[359054300,1745677844540,-812.14,0.00019976,2]
[359054301,1745677844553,-400.0,0.00019976,2]
[359054302,1745677844565,-775.71,0.00019976,2]
[359054303,1745677844578,-400.0,0.00019976,2]
[359054304,1745677844591,-400.0,0.00019976,2]
[359054305,1745677844604,-400.0,0.00019976,2]
[359054306,1745677844615,-400.0,0.00019976,2]
[359054307,1745677844627,-300.0,0.00019976,2]
[359054308,1745677844640,-595.4,0.00019976,2]
[359054309,1745677844652,-400.0,0.00019976,2]
[359054310,1745677844664,-400.0,0.00019976,2]
[359054311,1745677844677,-400.0,0.00019976,2]
[359054312,1745677844690,-400.0,0.00019976,2]
[359054313,1745677844704,-400.0,0.00019976,2]
[359054314,1745677844716,-400.0,0.00019976,2]
[359054315,1745677844729,-933.75,0.00019976,2]
[359054316,1745677844740,-400.0,0.00019976,2]
[359054317,1745677844752,-400.0,0.00019976,2]
[359054318,1745677844764,-400.0,0.00019976,2]
[359054319,1745677844776,-400.0,0.00019976,2]
[359054320,1745677844788,-400.0,0.00019976,2]
[359054321,1745677844801,-533.3,0.00019976,2]
[359054322,1745677844813,-400.0,0.00019976,2]
[359054323,1745677845264,-332.51255439,0.00019976,2]
[359054324,1745677845302,-400.0,0.00019976,2]
[359054325,1745677845333,-400.0,0.00019976,2]
[359054326,1745677845355,-400.0,0.00019976,2]
[359054327,1745677845364,-790.75,0.00019976,2]
[359054328,1745677845373,-681.98,0.00019976,2]
[359054329,1745677845383,-400.0,0.00019976,2]
[359054330,1745677845393,-886.46,0.00019976,2]
[359054331,1745677845403,-680.15,0.00019976,2]
[359054332,1745677845414,-400.0,0.00019976,2]
[359054333,1745677845424,-400.0,0.00019976,2]
[359054334,1745677845434,-400.0,0.00019976,2]
[359054335,1745677845444,-429.68,0.00019976,2]
[359054336,1745677845455,-694.31,0.00019976,2]
[359054337,1745677845465,-455.13,0.00019976,2]
[359054338,1745677845475,-545.91,0.00019976,2]
[359054339,1745677845485,-674.11,0.00019976,2]
[359054340,1745677845495,-400.0,0.00019976,2]
[359054341,1745677845504,-433.67,0.00019976,2]
[359054342,1745677845514,-400.0,0.00019976,2]
[359054343,1745677845524,-853.76,0.00019976,2]
[359054344,1745677845534,-500.0,0.00019976,2]
[359054345,1745677845543,-539.04,0.00019976,2]
[359054346,1745677845553,-500.0,0.00019976,2]
[359054347,1745677845562,-400.0,0.00019976,2]
[359054348,1745677845571,-150.0,0.00019976,2]
[359054349,1745677845581,-200.0,0.00019976,2]
[359054350,1745677845591,-177.18528437,0.00019976,2]
[359054351,1745677845601,-994.43,0.00019976,2]
[359054352,1745677845611,-567.19,0.00019976,2]
[359054353,1745677845621,-400.0,0.00019976,2]
[359054354,1745677845631,-400.0,0.00019976,2]
[359054355,1745677845641,-1730.14,0.00019976,2]
[359054356,1745677845650,-400.0,0.00019976,2]
[359054357,1745677845659,-400.0,0.00019976,2]
[359054358,1745677845669,-685.3,0.00019976,2]
[359054359,1745677845679,-783.29,0.00019976,2]
[359054360,1745677845688,-1942.33,0.00019976,2]
[359054361,1745677845697,-646.82,0.00019976,2]
[359054362,1745677845709,-400.0,0.00019976,2]
[359054363,1745677845719,-685.51,0.00019976,2]
[359054364,1745677845728,-400.0,0.00019976,2]
[359054365,1745677845739,-400.0,0.00019976,2]
[359054366,1745677845749,-400.0,0.00019976,2]
[359054367,1745677845759,-400.0,0.00019976,2]
[359054368,1745677845769,-400.0,0.00019976,2]
[359054369,1745677845778,-821.67,0.00019976,2]
[359054370,1745677845787,-400.0,0.00019976,2]
[359054371,1745677845797,-634.12,0.00019976,2]
[359054372,1745677845807,-400.0,0.00019976,2]
[359054373,1745677845817,-602.92,0.00019976,2]
[359054374,1745677845828,-509.75,0.00019976,2]
[359054375,1745677845838,-680.61,0.00019976,2]
[359054376,1745677845850,-462.99,0.00019976,2]
[359054377,1745677845860,-663.36,0.00019976,2]
[359054378,1745677845870,-714.2,0.00019976,2]
[359054379,1745677845879,-4018.11,0.00019976,2]
[359054380,1745677845889,-400.0,0.00019976,2]
[359054381,1745677845898,-670.43,0.00019976,2]
[359054382,1745677845909,-654.37,0.00019976,2]
[359054383,1745677845922,-361.98481845,0.00019976,2]
[359054384,1745677845934,-803.84,0.00019976,2]
[359054385,1745677845943,-400.0,0.00019976,2]
[359054386,1745677845953,-462.53,0.00019976,2]
[359054387,1745677845963,-554.66,0.00019976,2]
[359054388,1745677845972,-400.0,0.00019976,2]
[359054389,1745677845982,-400.0,0.00019976,2]
[359054390,1745677845991,-400.0,0.00019976,2]
[359054391,1745677846001,-400.0,0.00019976,2]
[359054392,1745677846010,-400.0,0.00019976,2]
[359054393,1745677846019,-400.0,0.00019976,2]
[359054394,1745677846029,-400.0,0.00019976,2]
[359054395,1745677846040,-400.0,0.00019976,2]
[359054396,1745677846050,-640.08,0.00019976,2]
[359054397,1745677846059,-684.36,0.00019976,2]
[359054398,1745677846069,-400.0,0.00019976,2]
[359054399,1745677846078,-400.0,0.00019976,2]
[359054400,1745677846088,-400.0,0.00019976,2]
[359054401,1745677846097,-400.0,0.00019976,2]
[359054402,1745677846107,-400.0,0.00019976,2]
[359054403,1745677846117,-400.0,0.00019976,2]
[359054405,1745677846127,-827.73,0.00019976,2]
[359054407,1745677846136,-400.0,0.00019976,2]
[359054409,1745677846146,-400.0,0.00019976,2]
[359054410,1745677846155,-488.91,0.00019976,2]
[359054411,1745677846165,-438.86,0.00019976,2]
[359054412,1745677846175,-772.41,0.00019976,2]
[359054413,1745677846184,-400.0,0.00019976,2]
[359054414,1745677846194,-400.0,0.00019976,2]
[359054415,1745677846204,-400.0,0.00019976,2]
[359054416,1745677846217,-402.4,0.00019976,2]
[359054417,1745677846227,-400.0,0.00019976,2]
[359054418,1745677846236,-4266.32,0.00019976,2]
[359054419,1745677846247,-856.29,0.00019976,2]
[359054420,1745677846258,-400.0,0.00019976,2]
[359054421,1745677846267,-915.77,0.00019976,2]
[359054422,1745677846279,-1052.94,0.00019976,2]
[359054423,1745677846289,-431.64,0.00019976,2]
[359054424,1745677846299,-400.0,0.00019976,2]
[359054425,1745677846309,-711.99,0.00019976,2]
[359054426,1745677846319,-400.0,0.00019976,2]
[359054427,1745677846328,-200.0,0.00019977,2]
[359054428,1745677846338,-400.0,0.00019977,2]
[359054429,1745677846348,-400.0,0.00019977,2]
[359054430,1745677846358,-400.0,0.00019977,2]
[359054431,1745677846367,-400.0,0.00019977,2]
[359054432,1745677846377,-400.0,0.00019977,2]
[359054433,1745677846387,-407.48,0.00019977,2]
[359054434,1745677846396,-660.01,0.00019977,2]
[359054435,1745677846406,-1757.72,0.00019977,2]
[359054436,1745677846416,-400.0,0.00019977,2]
[359054437,1745677846427,-400.0,0.00019977,2]
[359054438,1745677846437,-514.53,0.00019977,2]
[359054439,1745677846448,-400.0,0.00019977,2]
[359054440,1745677846459,-400.0,0.00019977,2]
[359054441,1745677846469,-400.0,0.00019977,2]
[359054442,1745677846478,-400.0,0.00019977,2]
[359054443,1745677846488,-400.0,0.00019977,2]
[359054444,1745677846498,-464.57,0.00019977,2]
[359054445,1745677846508,-657.15,0.00019977,2]
[359054446,1745677846518,-400.0,0.00019977,2]
[359054447,1745677846528,-400.0,0.00019977,2]
[359054448,1745677846539,-400.0,0.00019977,2]
[359054449,1745677846549,-408.82,0.00019977,2]
[359054450,1745677846559,-400.0,0.00019977,2]
[359054451,1745677846568,-350.02092659,0.00019977,2]
[359054452,1745677846578,-400.0,0.00019977,2]
[359054453,1745677846589,-400.0,0.00019977,2]
[359054454,1745677846600,-465.88,0.00019977,2]
[359054455,1745677846610,-400.0,0.00019977,2]
[359054456,1745677846620,-609.36,0.00019977,2]
[359054457,1745677846631,-400.0,0.00019977,2]
[359054458,1745677846641,-400.0,0.00019977,2]
[359054459,1745677846651,-446.77,0.00019977,2]
[359054461,1745677846661,-400.0,0.00019977,2]
[359054462,1745677846674,-400.0,0.00019977,2]
[359054464,1745677846683,-400.0,0.00019977,2]
[359054466,1745677846693,-400.0,0.00019977,2]
[359054468,1745677846702,-400.0,0.00019977,2]
[359054470,1745677846712,-400.0,0.00019977,2]
[359054472,1745677846722,-400.0,0.00019977,2]
[359054473,1745677846731,-400.0,0.00019977,2]
[359054475,1745677846740,-400.0,0.00019977,2]
[359054477,1745677846750,-400.0,0.00019977,2]
[359054479,1745677846759,-400.0,0.00019977,2]
[359054481,1745677846768,-490.54469982,0.00019977,2]
[359054482,1745677846782,-400.0,0.00019977,2]
[359054484,1745677846791,-775.74,0.00019977,2]
[359054486,1745677846800,-200.0,0.00019977,2]
[359054488,1745677846810,-589.02,0.00019977,2]
[359054490,1745677846820,-400.0,0.00019977,2]
[359054492,1745677846829,-616.3,0.00019977,2]
[359054493,1745677846839,-443.17,0.00019977,2]
[359054495,1745677846848,-400.0,0.00019977,2]
[359054496,1745677846858,-400.0,0.00019977,2]
[359054497,1745677846868,-446.52,0.00019977,2]
[359054498,1745677846877,-400.0,0.00019977,2]
[359054499,1745677846888,-400.0,0.00019977,2]
[359054500,1745677846898,-697.28,0.00019977,2]
[359054501,1745677846909,-774.57,0.00019977,2]
[359054502,1745677846920,-400.0,0.00019977,2]
[359054503,1745677846929,-832.0,0.00019977,2]
[359054504,1745677846939,-449.99,0.00019977,2]
[359054505,1745677846948,-868.33,0.00019977,2]
[359054506,1745677846959,-400.0,0.00019977,2]
[359054507,1745677846968,-400.0,0.00019977,2]
[359054508,1745677846978,-400.0,0.00019977,2]
[359054509,1745677846987,-615.62,0.00019977,2]
[359054510,1745677846997,-1145.49,0.00019977,2]
[359054511,1745677847008,-1079.64,0.00019977,2]
[359054512,1745677847018,-400.0,0.00019977,2]
[359054513,1745677847030,-1214.75,0.00019977,2]
[359054514,1745677847041,-463.17,0.00019977,2]
[359054515,1745677847050,-400.0,0.00019977,2]
[359054516,1745677847061,-821.8,0.00019977,2]
[359054517,1745677847071,-400.0,0.00019977,2]
[359054518,1745677847080,-906.62,0.00019977,2]
[359054519,1745677847089,-919.07,0.00019977,2]
[359054520,1745677847099,-695.36,0.00019977,2]
[359054521,1745677847109,-1670.874,0.00019985,2]
[359054522,1745677847119,-3747.1270022,0.00019986,2]
[359054523,1745677847129,-7642.5246885,0.00019986,2]
[359054524,1745677847139,-43825.2739945,0.00019986,2]
[359054525,1745677847149,-2906.7914452,0.00019986,2]
[359054526,1745677847160,-12174.3229085,0.00019986,2]
[359054527,1745677847169,-813.67971994,0.0001999,2]
[359054528,1745677847179,-813.67971994,0.0001999,2]
[359054529,1745677847188,-813.67971994,0.0001999,2]
[359054530,1745677847197,-3205.39463561,0.00019992,2]
[359054531,1745677847210,-167.81369869,0.00019999,2]
[359054532,1745677847220,-263.09905844,0.00019999,2]
[359054533,1745677847229,-503.20936265,0.00019999,2]
[359054534,1745677847239,-509.13702663,0.00019999,2]
[359054535,1745677847249,-829.71,0.00019999,2]
[359054536,1745677847258,-400.0,0.00019999,2]
[359054537,1745677847267,-400.0,0.00019999,2]
[359054538,1745677847276,-400.0,0.00019999,2]
[359054539,1745677847287,-200.0,0.00019999,2]
[359054540,1745677847296,-400.0,0.00019999,2]
[359054541,1745677847305,-774.0,0.0002,2]
[359054542,1745677847314,-125229.94638319,0.0002,2]
[359054543,1745677847842,-11328.0742932,0.0002,2]
[359054544,1745677847859,-806.78095729,0.0002,2]
[359054545,1745677847875,-14290.2986398,0.0002,2]
[359054546,1745677847886,-18628.8,0.0002,2]
[359054547,1745677849896,-595.81,0.00019974,2]
[359054548,1745677849908,-400.0,0.00019975,2]
[359054549,1745677849920,-400.0,0.00019975,2]
[359054550,1745677849931,-400.0,0.00019975,2]
[359054551,1745677849942,-400.0,0.00019975,2]
[359054552,1745677849952,-249.03,0.00019975,2]
[359054553,1745677850025,-400.0,0.00019974,2]
[359054554,1745677850035,-150.97,0.00019975,2]
[359054555,1745677850046,-400.0,0.00019975,2]
[359054556,1745677850056,-400.0,0.00019975,2]
[359054557,1745677850067,-513.15420033,0.0002,2]
[359054558,1745677850088,-816.8,0.0002,2]
[359054559,1745678086546,1000.0,0.00019058,2]
[359054560,1745678127156,150.91,0.00027425,30]
[359054561,1745678537450,250.0,0.00017,2]
[359054562,1745678538529,300.0,0.00019,2]
[359054563,1745678567398,151.0,0.000378,60]
[359054574,1745678877591,377.57,0.00017098,2]
[359054575,1745678884857,-291.97737678,0.00019362,2]
[359054576,1745678917368,306.53010081,0.0002,6]
[359054579,1745679003204,1660.56787376,0.0002,4]
[359054580,1745679031397,-85.59262322,0.00019362,2]
[359054581,1745679031408,-250.0,0.00019481,2]
[359054582,1745679031418,-217.44587564,0.000196,2]
[359054583,1745679031429,-158.55,0.00019622,2]
[359054584,1745679031438,-260.59732528,0.00019683,2]
[359054585,1745679031517,-2379.29786163,0.00019683,2]
[359054586,1745679031544,-450.0,0.00019683,2]
[359054587,1745679031652,-2122.27490898,0.00019683,2]
[359054588,1745679031662,-3162.83771797,0.00019686,2]
[359054589,1745679031677,-350.0,0.00019686,2]
[359054590,1745679031689,-748.44104968,0.00019686,2]
[359054636,1745679037119,5000.0,0.000378,60]
[359054648,1745679037434,-463.02421712,0.00019686,2]
[359054649,1745679037465,-450.319,0.00019686,2]
[359054650,1745679037502,-37.54811112,0.00019686,2]
[359054651,1745679037514,-30753.76842239,0.0001972,2]
[359054652,1745679037526,-30753.76842239,0.00019775,2]
[359054653,1745679037538,-183.0198485,0.00019799,2]
[359054654,1745679037549,-1200.0,0.00019799,2]
[359054655,1745679037560,-200.0,0.00019799,2]
[359054656,1745679037570,-16268.4041475,0.000198,2]
[359054657,1745679037581,-3096.55054923,0.00019829,2]
[359054658,1745679037592,-238.71924336,0.000199,2]
[359054659,1745679037603,-207.4,0.00019962,2]
[359054660,1745679037614,-273.46,0.00019964,2]
[359054661,1745679037625,-632.16045856,0.00019972,2]
[359054662,1745679037636,-400.0,0.00019972,2]
[359054663,1745679037647,-441.69,0.00019972,2]
[359054664,1745679037658,-400.0,0.00019972,2]
[359054665,1745679037668,-653.06,0.00019972,2]
[359054666,1745679037678,-400.0,0.00019972,2]
[359054667,1745679037689,-962.28,0.00019972,2]
[359054668,1745679037699,-400.0,0.00019972,2]
[359054669,1745679037714,-578.49,0.00019972,2]
[359054670,1745679037724,-509.8,0.00019972,2]
[359054671,1745679037735,-1203.87,0.00019972,2]
[359054672,1745679037745,-663.18,0.00019972,2]
[359054673,1745679037755,-436.19,0.00019972,2]
[359054674,1745679037767,-400.0,0.00019972,2]
[359054675,1745679037778,-400.0,0.00019972,2]
[359054676,1745679037788,-400.0,0.00019972,2]
[359054677,1745679037799,-400.0,0.00019972,2]
[359054678,1745679037810,-539.04,0.00019972,2]
[359054679,1745679037820,-135.14469508,0.00019973,2]
[359054680,1745679037863,-364.85530492,0.00019973,2]
[359054681,1745679037873,-242.85750312,0.00019973,2]
[359054682,1745679037883,-500.0,0.00019973,2]
[359054683,1745679037896,-150.389112,0.00019973,2]
[359054684,1745679037906,-2142.05059362,0.00019973,2]
[359054687,1745679037930,-1871.50826738,0.00019973,2]
[359054689,1745679037941,-152.309772,0.00019973,2]
[359054692,1745679037952,-400.0,0.00019973,2]
[359054695,1745679037962,-400.0,0.00019973,2]